[Event "32nd NATO Chess Championship"]
[Site "Tartu, Estonia"]
[Date "2022.06.27"]
[Round "1.33"]
[White "Ross, David C"]
[Black "Aagaard, Gert"]
[Result "0-1"]
[TimeControl "90 min + 30 sec increment from move one"]
[WhiteFideId "417572"]
[BlackFideId "1427024"]
[WhiteElo "1677"]
[BlackElo "1979"]

1. e4 {[%clk 01:30:53]} {[%emt 00:00:06]} c5 {[%clk 01:30:57]} {[%emt
00:00:03]} 2. Nf3 {[%clk 01:30:52]} {[%emt 00:00:31]} Nc6 {[%clk 01:31:21]}
{[%emt 00:00:07]} 3. Bd3 {[%clk 01:31:05]} {[%emt 00:00:16]} g6 {[%clk
01:29:38]} {[%emt 00:02:13]} 4. c3 {[%clk 01:31:21]} {[%emt 00:00:15]} Bg7
{[%clk 01:29:54]} {[%emt 00:00:13]} 5. O-O {[%clk 01:30:39]} {[%emt 00:01:12]}
d6 {[%clk 01:27:37]} {[%emt 00:02:47]} 6. Bc2 {[%clk 01:29:43]} {[%emt
00:01:26]} Nf6 {[%clk 01:24:33]} {[%emt 00:03:33]} 7. h3 {[%clk 01:27:57]}
{[%emt 00:02:17]} O-O {[%clk 01:24:13]} {[%emt 00:00:49]} 8. d4 {[%clk
01:27:54]} {[%emt 00:00:34]} cxd4 {[%emt 00:04:59]} 9. Nxd4 {[%clk 01:25:15]}
{[%emt 00:00:43]} Nd7 {[%clk 01:20:51]} {[%emt 00:01:49]} 10. Be3 {[%clk
01:23:34]} {[%emt 00:02:11]} Nde5 {[%clk 01:20:11]} {[%emt 00:01:10]} 11. Nd2
{[%clk 01:20:13]} {[%emt 00:03:51]} Bd7 {[%clk 01:17:58]} {[%emt 00:02:42]} 12.
f4 {[%clk 01:09:34]} {[%emt 00:11:10]} Nxd4 {[%clk 01:18:18]} {[%emt 00:00:10]}
13. Bxd4 {[%clk 01:09:13]} {[%emt 00:00:51]} Nc6 {[%clk 01:18:45]} {[%emt
00:00:03]} 14. Bxg7 {[%clk 01:07:28]} {[%emt 00:02:14]} Kxg7 {[%clk 01:19:12]}
{[%emt 00:00:04]} 15. Kh2 {[%clk 01:04:14]} {[%emt 00:03:44]} Qc7 {[%clk
01:17:30]} {[%emt 00:02:12]} 16. Kh1 {[%clk 00:58:32]} {[%emt 00:06:12]} Rac8
{[%clk 01:14:53]} {[%emt 00:03:07]} 17. Nf3 {[%clk 00:54:20]} {[%emt 00:04:43]}
Kg8 {[%clk 01:09:35]} {[%emt 00:05:47]} 18. f5 {[%clk 00:46:14]} {[%emt
00:08:36]} Na5 {[%clk 01:06:58]} {[%emt 00:03:07]} 19. Qc1 {[%clk 00:37:15]}
{[%emt 00:09:30]} Kg7 {[%emt 00:03:11]} 20. Nd4 {[%clk 00:31:03]} {[%emt
00:06:01]} Nc4 {[%clk 01:01:38]} {[%emt 00:03:50]} 21. Qg5 {[%clk 00:19:52]}
{[%emt 00:11:40]} f6 {[%clk 00:51:20]} {[%emt 00:10:47]} 22. Qc1 {[%clk
00:19:11]} {[%emt 00:01:12]} Ne5 {[%clk 00:49:12]} {[%emt 00:02:37]} 23. Ba4
{[%clk 00:13:26]} {[%emt 00:06:15]} Nc6 {[%clk 00:49:04]} {[%emt 00:00:38]} 24.
Bb3 {[%clk 00:09:35]} {[%emt 00:04:22]} Qb6 {[%clk 00:40:37]} {[%emt 00:08:56]}
25. Qd2 {[%clk 00:08:47]} {[%emt 00:01:18]} Ne5 {[%clk 00:38:25]} {[%emt
00:02:42]} 26. Qe2 {[%clk 00:06:27]} {[%emt 00:02:51]} a5 {[%clk 00:37:48]}
{[%emt 00:01:07]} 27. Be6 {[%clk 00:04:54]} {[%emt 00:02:03]} Rh8 {[%clk
00:35:47]} {[%emt 00:02:30]} 28. Bxd7 {[%clk 00:04:48]} {[%emt 00:00:36]} Nxd7
{[%clk 00:36:14]} {[%emt 00:00:03]} 29. Rad1 {[%clk 00:03:02]} {[%emt
00:02:16]} Kf7 {[%clk 00:36:10]} {[%emt 00:00:34]} 30. Rd2 {[%clk 00:02:18]}
{[%emt 00:01:16]} Qc5 {[%clk 00:34:10]} {[%emt 00:02:25]} 31. Qg4 {[%clk
00:01:43]} {[%emt 00:01:08]} Qc4 {[%clk 00:33:35]} {[%emt 00:01:04]} 32. Rdf2
{[%clk 00:01:52]} {[%emt 00:00:22]} Ne5 {[%clk 00:30:11]} {[%emt 00:03:55]} 33.
Qg3 {[%clk 00:01:38]} {[%emt 00:00:44]} g5 {[%clk 00:29:18]} {[%emt 00:01:22]}
34. Nf3 {[%clk 00:01:09]} {[%emt 00:00:59]} Nd3 {[%clk 00:27:59]} {[%emt
00:01:49]} 35. Rd2 {[%clk 00:00:42]} {[%emt 00:00:58]} Nf4 {[%clk 00:28:06]}
{[%emt 00:00:21]} 36. Qf2 {[%clk 00:00:39]} {[%emt 00:00:34]} h5 {[%clk
00:26:27]} {[%emt 00:02:09]} 37. Rd4 {[%clk 00:00:32]} {[%emt 00:00:38]} Qe2
{[%clk 00:24:44]} {[%emt 00:02:13]} 38. Ng1 {[%clk 00:00:31]} {[%emt 00:00:31]}
Qa6 {[%clk 00:24:01]} {[%emt 00:01:13]} 0-1

[Event "32nd NATO Chess Championship"]
[Site "Tartu, Estonia"]
[Date "2022.06.27"]
[Round "1.34"]
[White "Stankowski, Aleksander"]
[Black "O`byrne, Daniel"]
[Result "1-0"]
[TimeControl "90 min + 30 sec increment from move one"]
[WhiteFideId "1137603"]
[BlackFideId "440825"]
[WhiteElo "1971"]
[BlackElo "1664"]

1. Nf3 {[%clk 01:30:39]} {[%emt 00:00:21]} d5 {[%clk 01:30:23]} {[%emt
00:00:37]} 2. g3 {[%clk 01:30:08]} {[%emt 00:01:01]} Bf5 {[%clk 01:30:17]}
{[%emt 00:00:36]} 3. Bg2 {[%clk 01:30:16]} {[%emt 00:00:22]} c6 {[%clk
01:30:29]} {[%emt 00:00:18]} 4. O-O {[%clk 01:30:22]} {[%emt 00:00:24]} Qd7
{[%clk 01:30:08]} {[%emt 00:00:51]} 5. Re1 {[%clk 01:28:55]} {[%emt 00:01:57]}
f6 {[%clk 01:29:47]} {[%emt 00:00:52]} 6. d3 {[%clk 01:28:00]} {[%emt
00:01:24]} e5 {[%clk 01:28:26]} {[%emt 00:01:50]} 7. Nc3 {[%clk 01:25:13]}
{[%emt 00:03:18]} Bb4 {[%clk 01:27:28]} {[%emt 00:01:28]} 8. Bd2 {[%clk
01:22:38]} {[%emt 00:03:05]} Ne7 {[%clk 01:27:31]} {[%emt 00:00:27]} 9. e4
{[%emt 00:02:32]} Bg4 {[%clk 01:21:36]} {[%emt 00:05:44]} 10. exd5 {[%clk
01:13:51]} {[%emt 00:07:57]} cxd5 {[%clk 01:20:49]} {[%emt 00:01:17]} 11. h3
{[%clk 01:06:36]} {[%emt 00:07:45]} Bxh3 {[%clk 01:13:23]} {[%emt 00:07:55]} 12.
Nxe5 {[%clk 01:05:24]} {[%emt 00:01:42]} fxe5 {[%clk 01:12:39]} {[%emt
00:00:59]} 13. Qh5+ {[%clk 01:05:07]} {[%emt 00:01:02]} g6 {[%clk 01:12:43]}
{[%emt 00:00:27]} 14. Qxh3 {[%clk 00:57:19]} {[%emt 00:08:18]} Qxh3 {[%clk
01:04:37]} {[%emt 00:08:36]} 15. Bxh3 {[%clk 00:57:31]} {[%emt 00:00:19]} Nbc6
{[%clk 01:02:34]} {[%emt 00:02:33]} 16. a3 {[%clk 00:47:24]} {[%emt 00:10:37]}
Bc5 {[%emt 00:11:57]} 17. b4 {[%clk 00:44:08]} {[%emt 00:00:22]} Bb6 {[%clk
00:49:49]} {[%emt 00:05:12]} 18. Kg2 {[%clk 00:39:35]} {[%emt 00:05:03]} O-O
{[%clk 00:49:03]} {[%emt 00:01:15]} 19. Rf1 {[%clk 00:36:42]} {[%emt 00:03:23]}
Nd4 {[%clk 00:47:17]} {[%emt 00:02:16]} 20. Rac1 {[%clk 00:33:51]} {[%emt
00:03:20]} Kg7 {[%clk 00:35:55]} {[%emt 00:11:52]} 21. Bg5 {[%clk 00:31:41]}
{[%emt 00:02:40]} Ndc6 {[%clk 00:29:07]} {[%emt 00:07:18]} 22. Be6 {[%clk
00:23:37]} {[%emt 00:08:34]} d4 {[%clk 00:22:34]} {[%emt 00:07:03]} 23. Ne4
{[%clk 00:21:10]} {[%emt 00:02:57]} h6 {[%clk 00:19:47]} {[%emt 00:03:17]} 24.
Bd2 {[%clk 00:19:14]} {[%emt 00:02:27]} a6 {[%clk 00:16:45]} {[%emt 00:03:32]}
25. Rh1 {[%clk 00:18:56]} {[%emt 00:00:47]} g5 {[%clk 00:14:50]} {[%emt
00:02:25]} 26. Rh5 {[%clk 00:18:02]} {[%emt 00:01:24]} Kg6 {[%clk 00:11:47]}
{[%emt 00:03:33]} 27. Rch1 {[%clk 00:17:42]} {[%emt 00:00:50]} Rh8 {[%clk
00:08:26]} {[%emt 00:03:51]} 28. Bxg5 {[%clk 00:17:33]} {[%emt 00:00:39]} Nd8
{[%clk 00:05:55]} {[%emt 00:02:59]} 29. Bb3 {[%clk 00:13:17]} {[%emt 00:04:47]}
Nf5 {[%clk 00:06:01]} {[%emt 00:00:25]} 30. g4 {[%clk 00:13:07]} {[%emt
00:00:40]} Ng7 {[%clk 00:02:08]} {[%emt 00:04:23]} 31. Rxh6+ {[%clk 00:13:23]}
{[%emt 00:00:14]} 1-0

[Event "32nd NATO Chess Championship"]
[Site "Tartu, Estonia"]
[Date "2022.06.27"]
[Round "1.35"]
[White "Chapman, Chas"]
[Black "Pirs, Matjaz"]
[Result "0-1"]
[TimeControl "90 min + 30 sec increment from move one"]
[WhiteFideId "443468"]
[BlackFideId "14606941"]
[WhiteElo "1646"]
[BlackElo "1965"]

1. e4 {[%clk 01:30:45]} {[%emt 00:00:14]} e5 {[%clk 01:30:12]} {[%emt
00:00:49]} 2. Nf3 {[%clk 01:30:40]} {[%emt 00:00:36]} Nf6 {[%clk 01:29:54]}
{[%emt 00:00:48]} 3. Nc3 {[%clk 01:30:01]} {[%emt 00:01:09]} Nc6 {[%clk
01:30:05]} {[%emt 00:00:19]} 4. Bc4 {[%clk 01:29:04]} {[%emt 00:01:27]} Be7
{[%clk 01:28:55]} {[%emt 00:01:40]} 5. a3 {[%clk 01:25:08]} {[%emt 00:04:26]}
d6 {[%clk 01:28:47]} {[%emt 00:00:37]} 6. h3 {[%clk 01:24:05]} {[%emt
00:01:33]} O-O {[%clk 01:26:52]} {[%emt 00:02:25]} 7. d3 {[%emt 00:05:22]} h6
{[%clk 01:17:45]} {[%emt 00:05:23]} 8. O-O {[%clk 01:21:22]} {[%emt 00:02:35]}
Be6 {[%clk 01:14:14]} {[%emt 00:04:01]} 9. Ba2 {[%clk 01:18:27]} {[%emt
00:03:25]} Bxa2 {[%clk 01:10:14]} {[%emt 00:04:29]} 10. Rxa2 {[%clk 01:18:12]}
{[%emt 00:00:46]} d5 {[%clk 01:10:01]} {[%emt 00:00:43]} 11. b4 {[%clk
01:13:37]} {[%emt 00:05:05]} a6 {[%clk 01:06:59]} {[%emt 00:03:32]} 12. Bb2
{[%clk 01:09:18]} {[%emt 00:04:49]} d4 {[%clk 00:56:36]} {[%emt 00:10:52]} 13.
Ne2 {[%clk 01:06:36]} {[%emt 00:03:12]} Qd7 {[%clk 00:47:51]} {[%emt 00:09:13]}
14. c3 {[%clk 01:05:35]} {[%emt 00:01:33]} dxc3 {[%clk 00:47:47]} {[%emt
00:00:35]} 15. Bxc3 {[%clk 01:03:47]} {[%emt 00:02:18]} Qe6 {[%clk 00:46:27]}
{[%emt 00:01:50]} 16. Qb1 {[%clk 01:00:51]} {[%emt 00:03:27]} Rad8 {[%clk
00:45:27]} {[%emt 00:01:29]} 17. Rd2 {[%emt 00:07:50]} Bd6 {[%clk 00:40:30]}
{[%emt 00:03:57]} 18. Rfd1 {[%clk 00:45:08]} {[%emt 00:10:22]} Rfe8 {[%clk
00:40:08]} {[%emt 00:00:52]} 19. Qa2 {[%clk 00:40:26]} {[%emt 00:05:13]} Qc8
{[%clk 00:31:21]} {[%emt 00:09:16]} 20. Ng3 {[%clk 00:37:32]} {[%emt 00:03:24]}
g6 {[%clk 00:28:00]} {[%emt 00:03:51]} 21. Re1 {[%clk 00:35:28]} {[%emt
00:02:35]} Re6 {[%clk 00:15:04]} {[%emt 00:13:26]} 22. d4 {[%clk 00:32:28]}
{[%emt 00:03:30]} exd4 {[%clk 00:15:26]} {[%emt 00:00:07]} 23. Nxd4 {[%clk
00:32:11]} {[%emt 00:00:47]} Nxd4 {[%clk 00:15:48]} {[%emt 00:00:09]} 24. Bxd4
{[%clk 00:26:04]} {[%emt 00:06:37]} Bf4 {[%clk 00:10:31]} {[%emt 00:05:46]} 25.
Rd3 {[%clk 00:19:17]} {[%emt 00:07:17]} Bxg3 {[%clk 00:07:13]} {[%emt
00:03:49]} 26. fxg3 {[%clk 00:18:20]} {[%emt 00:01:26]} Nxe4 {[%clk 00:05:30]}
{[%emt 00:02:13]} 27. Qb2 {[%clk 00:11:56]} {[%emt 00:06:55]} Kh7 {[%clk
00:05:01]} {[%emt 00:00:58]} 28. Rde3 {[%clk 00:10:35]} {[%emt 00:01:50]} Ng5
{[%clk 00:04:55]} {[%emt 00:00:37]} 29. Rxe6 {[%clk 00:08:03]} {[%emt
00:03:03]} Nxe6 {[%clk 00:05:14]} {[%emt 00:00:11]} 30. Bf6 {[%clk 00:06:16]}
{[%emt 00:02:16]} Re8 {[%clk 00:04:30]} {[%emt 00:01:15]} 31. Qf2 {[%clk
00:04:44]} {[%emt 00:02:01]} Qd7 {[%clk 00:03:53]} {[%emt 00:01:07]} 32. Bc3
{[%clk 00:04:00]} {[%emt 00:01:13]} Qe7 {[%clk 00:03:25]} {[%emt 00:00:58]} 33.
Qe3 {[%clk 00:03:08]} {[%emt 00:01:24]} Qf8 {[%clk 00:01:31]} {[%emt 00:02:24]}
34. Qe4 {[%clk 00:02:47]} {[%emt 00:00:50]} c6 {[%clk 00:01:31]} {[%emt
00:00:31]} 35. Rf1 {[%clk 00:02:46]} {[%emt 00:00:31]} f5 {[%clk 00:01:08]}
{[%emt 00:00:53]} 36. Qf3 {[%clk 00:01:45]} {[%emt 00:01:30]} Nc7 {[%clk
00:01:09]} {[%emt 00:00:27]} 37. g4 {[%clk 00:01:57]} {[%emt 00:00:20]} Nd5
{[%clk 00:01:34]} {[%emt 00:00:05]} 38. Bb2 {[%clk 00:01:42]} {[%emt 00:00:45]}
f4 {[%clk 00:01:51]} {[%emt 00:00:13]} 39. Qd3 {[%clk 00:01:07]} {[%emt
00:01:05]} Qe7 {[%clk 00:02:11]} {[%emt 00:00:10]} 40. Bd4 {[%clk 00:01:08]}
{[%emt 00:00:29]} Qe4 {[%clk 00:02:33]} {[%emt 00:00:08]} 41. Qxe4 {[%clk
00:01:08]} {[%emt 00:00:31]} Rxe4 {[%clk 00:02:58]} {[%emt 00:00:05]} 42. Bf2
{[%clk 00:01:23]} {[%emt 00:00:15]} g5 {[%clk 00:02:52]} {[%emt 00:00:36]} 43.
Re1 {[%clk 00:01:47]} {[%emt 00:00:06]} Rxe1+ {[%clk 00:01:15]} {[%emt
00:02:07]} 44. Bxe1 {[%clk 00:02:13]} {[%emt 00:00:04]} Kg6 {[%clk 00:01:32]}
{[%emt 00:00:13]} 45. Bf2 {[%clk 00:02:29]} {[%emt 00:00:14]} h5 {[%clk
00:01:49]} {[%emt 00:00:13]} 46. gxh5+ {[%clk 00:02:36]} {[%emt 00:00:23]} Kxh5
{[%clk 00:02:15]} {[%emt 00:00:04]} 47. Bc5 {[%clk 00:03:00]} {[%emt 00:00:05]}
b6 {[%clk 00:02:19]} {[%emt 00:00:26]} 48. Bd4 {[%clk 00:03:10]} {[%emt
00:00:20]} g4 {[%clk 00:02:18]} {[%emt 00:00:32]} 49. hxg4+ {[%clk 00:03:18]}
{[%emt 00:00:22]} Kxg4 {[%clk 00:02:42]} {[%emt 00:00:06]} 50. Kf2 {[%emt
00:00:16]} Kf5 {[%clk 00:03:07]} 51. Kf3 {[%clk 00:03:19]} {[%emt 00:00:47]} a5
{[%clk 00:03:31]} {[%emt 00:00:06]} 52. bxa5 {[%clk 00:02:58]} {[%emt
00:00:51]} bxa5 {[%clk 00:03:57]} {[%emt 00:00:04]} 53. Bc5 {[%clk 00:02:04]}
{[%emt 00:01:24]} a4 {[%clk 00:04:19]} {[%emt 00:00:08]} 54. Bd6 {[%clk
00:01:32]} {[%emt 00:01:02]} Kg5 {[%clk 00:04:34]} {[%emt 00:00:16]} 55. Bc5
{[%clk 00:01:35]} {[%emt 00:00:26]} Kf6 {[%clk 00:04:11]} {[%emt 00:00:53]} 56.
Bd6 {[%clk 00:01:52]} {[%emt 00:00:14]} Kf5 {[%clk 00:04:22]} {[%emt 00:00:19]}
57. Bc5 {[%clk 00:01:42]} {[%emt 00:00:40]} Ke5 {[%clk 00:04:36]} {[%emt
00:00:15]} 58. g4 {[%clk 00:01:23]} {[%emt 00:00:49]} fxg3 {[%clk 00:04:59]}
{[%emt 00:00:08]} 59. Kxg3 {[%clk 00:01:47]} {[%emt 00:00:06]} Ke4 {[%clk
00:05:22]} {[%emt 00:00:06]} 60. Kf2 {[%clk 00:01:07]} {[%emt 00:01:09]} Kd3
{[%clk 00:05:30]} {[%emt 00:00:22]} 61. Kf3 {[%clk 00:01:09]} {[%emt 00:00:29]}
Nc3 {[%clk 00:05:32]} {[%emt 00:00:27]} 62. Kf4 {[%clk 00:00:59]} {[%emt
00:00:41]} Ne4 {[%clk 00:05:48]} {[%emt 00:00:14]} 63. Ke5 {[%clk 00:00:47]}
{[%emt 00:00:40]} Nxc5 {[%clk 00:06:13]} {[%emt 00:00:06]} 0-1

[Event "32nd NATO Chess Championship"]
[Site "Tartu, Estonia"]
[Date "2022.06.27"]
[Round "1.36"]
[White "Cheung, Jan"]
[Black "Windey, Luc"]
[Result "1-0"]
[TimeControl "90 min + 30 sec increment from move one"]
[WhiteFideId "1010735"]
[BlackFideId "249220"]
[WhiteElo "1964"]
[BlackElo "1624"]

1. d4 {[%clk 01:30:55]} {[%emt 00:00:04]} d5 {[%clk 01:30:55]} {[%emt
00:00:05]} 2. c4 {[%clk 01:31:20]} {[%emt 00:00:05]} dxc4 {[%clk 01:31:07]}
{[%emt 00:00:19]} 3. e4 {[%clk 01:31:42]} {[%emt 00:00:07]} c6 {[%clk
01:30:25]} {[%emt 00:01:12]} 4. Bxc4 {[%clk 01:19:39]} {[%emt 00:12:33]} Nf6
{[%clk 01:27:50]} {[%emt 00:03:04]} 5. Nc3 {[%clk 01:19:27]} {[%emt 00:00:43]}
g6 {[%emt 00:02:57]} 6. Nge2 {[%clk 01:17:00]} {[%emt 00:00:31]} Bg7 {[%clk
01:27:04]} {[%emt 00:01:15]} 7. O-O {[%clk 01:16:54]} {[%emt 00:00:36]} O-O
{[%clk 01:26:56]} {[%emt 00:00:38]} 8. f3 {[%clk 01:16:43]} {[%emt 00:00:41]}
Nbd7 {[%clk 01:26:52]} {[%emt 00:00:33]} 9. e5 {[%clk 01:13:52]} {[%emt
00:03:22]} Ne8 {[%clk 01:24:59]} {[%emt 00:02:22]} 10. f4 {[%clk 01:11:52]}
{[%emt 00:02:31]} Nb6 {[%clk 01:24:11]} {[%emt 00:01:19]} 11. Bb3 {[%clk
01:11:58]} {[%emt 00:00:24]} Nc7 {[%clk 01:24:19]} {[%emt 00:00:22]} 12. Ng3
{[%clk 01:09:57]} {[%emt 00:02:30]} Ncd5 {[%clk 01:22:36]} {[%emt 00:02:12]} 13.
f5 {[%clk 01:04:50]} {[%emt 00:05:38]} a5 {[%clk 01:07:17]} {[%emt 00:15:49]}
14. a3 {[%clk 01:02:53]} {[%emt 00:02:26]} Nxc3 {[%clk 01:01:45]} {[%emt
00:06:03]} 15. bxc3 {[%clk 01:03:19]} {[%emt 00:00:04]} a4 {[%clk 01:02:09]}
{[%emt 00:00:06]} 16. Ba2 {[%clk 01:01:24]} {[%emt 00:02:25]} Nd5 {[%clk
01:01:58]} {[%emt 00:00:40]} 17. Bd2 {[%clk 01:00:49]} {[%emt 00:01:06]} b5
{[%clk 01:01:37]} {[%emt 00:00:52]} 18. Qc2 {[%clk 00:58:53]} {[%emt 00:02:26]}
Qb6 {[%clk 01:01:11]} {[%emt 00:00:56]} 19. Kh1 {[%clk 00:50:19]} {[%emt
00:09:04]} Rd8 {[%emt 00:06:48]} 20. e6 {[%emt 00:03:28]} Bf6 {[%clk 00:38:03]}
{[%emt 00:13:21]} 21. Rae1 {[%clk 00:48:14]} {[%emt 00:02:35]} Ra7 {[%clk
00:27:34]} {[%emt 00:11:00]} 22. Bb1 {[%clk 00:47:08]} {[%emt 00:01:35]} g5
{[%clk 00:26:14]} {[%emt 00:01:50]} 23. Ne4 {[%clk 00:43:19]} {[%emt 00:04:19]}
h6 {[%clk 00:23:19]} {[%emt 00:03:25]} 24. Qd1 {[%clk 00:42:46]} {[%emt
00:01:03]} fxe6 {[%clk 00:19:31]} {[%emt 00:04:18]} 25. fxe6 {[%clk 00:42:39]}
{[%emt 00:00:37]} Bg7 {[%clk 00:14:19]} {[%emt 00:05:41]} 26. Qh5 {[%clk
00:40:10]} {[%emt 00:02:59]} Bxe6 {[%clk 00:13:44]} {[%emt 00:01:05]} 27. Nxg5
{[%clk 00:39:55]} {[%emt 00:00:45]} Nf6 {[%clk 00:13:18]} {[%emt 00:00:56]} 28.
Rxf6 {[%clk 00:38:32]} {[%emt 00:01:53]} exf6 {[%clk 00:12:51]} {[%emt
00:00:58]} 29. Nxe6 {[%clk 00:38:25]} {[%emt 00:00:36]} 1-0

[Event "32nd NATO Chess Championship"]
[Site "Tartu, Estonia"]
[Date "2022.06.27"]
[Round "1.37"]
[White "Rizihs, Valerijs"]
[Black "Balmaceda, Enrico"]
[Result "1/2-1/2"]
[TimeControl "90 min + 30 sec increment from move one"]
[WhiteFideId "11603380"]
[BlackFideId "2089785"]
[WhiteElo "1619"]
[BlackElo "1958"]

1. d4 {[%clk 01:30:52]} {[%emt 00:00:07]} Nf6 {[%clk 01:30:50]} {[%emt
00:00:10]} 2. Nc3 {[%clk 01:30:33]} {[%emt 00:00:49]} d5 {[%clk 01:30:18]}
{[%emt 00:01:02]} 3. Bf4 {[%clk 01:30:36]} {[%emt 00:00:27]} c6 {[%clk
01:30:15]} {[%emt 00:00:33]} 4. e3 {[%clk 01:30:59]} {[%emt 00:00:07]} Bf5
{[%clk 01:29:20]} {[%emt 00:01:24]} 5. f3 {[%clk 01:31:10]} {[%emt 00:00:20]}
e6 {[%clk 01:28:54]} {[%emt 00:00:57]} 6. g4 {[%clk 01:29:38]} {[%emt
00:02:01]} Bg6 {[%clk 01:29:16]} {[%emt 00:00:06]} 7. h4 {[%clk 01:30:04]}
{[%emt 00:00:05]} h6 {[%clk 01:26:55]} {[%emt 00:02:52]} 8. Bd3 {[%clk
01:30:10]} {[%emt 00:00:24]} Bxd3 {[%clk 01:27:19]} {[%emt 00:00:06]} 9. Qxd3
{[%clk 01:30:34]} {[%emt 00:00:07]} Be7 {[%clk 01:24:57]} {[%emt 00:02:51]} 10.
Nge2 {[%clk 01:30:53]} {[%emt 00:00:11]} Nfd7 {[%clk 01:16:52]} {[%emt
00:08:36]} 11. Bg3 {[%clk 01:25:29]} {[%emt 00:05:53]} Qa5 {[%clk 01:03:06]}
{[%emt 00:14:15]} 12. e4 {[%clk 01:21:59]} {[%emt 00:04:01]} Na6 {[%clk
00:54:37]} {[%emt 00:08:59]} 13. a3 {[%clk 01:19:07]} {[%emt 00:03:23]} b5
{[%clk 00:35:25]} {[%emt 00:19:41]} 14. O-O {[%clk 01:18:44]} {[%emt 00:00:52]}
Qd8 {[%clk 00:34:09]} {[%emt 00:01:47]} 15. h5 {[%clk 01:17:58]} {[%emt
00:01:16]} O-O {[%clk 00:32:48]} {[%emt 00:01:51]} 16. e5 {[%clk 01:11:53]}
{[%emt 00:06:34]} Nc7 {[%emt 00:03:36]} 17. f4 {[%clk 01:10:05]} {[%emt
00:02:00]} a6 {[%clk 00:29:09]} {[%emt 00:01:21]} 18. f5 {[%clk 01:09:35]}
{[%emt 00:01:00]} c5 {[%clk 00:27:54]} {[%emt 00:01:45]} 19. Kg2 {[%clk
01:09:37]} {[%emt 00:00:27]} cxd4 {[%clk 00:26:02]} {[%emt 00:02:22]} 20. Nxd4
{[%clk 01:09:55]} {[%emt 00:00:11]} Nc5 {[%clk 00:25:33]} {[%emt 00:01:00]} 21.
Qf3 {[%clk 01:07:00]} {[%emt 00:03:24]} Bg5 {[%clk 00:23:20]} {[%emt 00:02:44]}
22. Bf4 {[%clk 01:03:00]} {[%emt 00:04:30]} Bxf4 {[%clk 00:18:09]} {[%emt
00:05:41]} 23. Qxf4 {[%clk 01:03:16]} {[%emt 00:00:13]} Qg5 {[%clk 00:16:21]}
{[%emt 00:02:18]} 24. Qxg5 {[%clk 01:01:53]} {[%emt 00:01:54]} hxg5 {[%clk
00:16:48]} {[%emt 00:00:04]} 25. f6 {[%clk 01:01:07]} {[%emt 00:01:15]} gxf6
{[%clk 00:15:07]} {[%emt 00:02:11]} 26. exf6 {[%clk 01:01:28]} {[%emt
00:00:09]} Nd7 {[%clk 00:14:40]} {[%emt 00:00:58]} 27. Kg3 {[%clk 01:00:03]}
{[%emt 00:01:52]} Kh7 {[%clk 00:13:53]} {[%emt 00:01:19]} 28. Rf2 {[%clk
00:58:27]} {[%emt 00:02:06]} Ne8 {[%clk 00:13:16]} {[%emt 00:01:07]} 29. Raf1
{[%clk 00:58:33]} {[%emt 00:00:23]} Nd6 {[%clk 00:13:17]} {[%emt 00:00:31]} 30.
Re2 {[%clk 00:50:59]} {[%emt 00:08:03]} Kh6 {[%clk 00:12:03]} {[%emt 00:01:45]}
31. Nxe6 {[%clk 00:43:13]} {[%emt 00:08:15]} fxe6 {[%clk 00:11:42]} {[%emt
00:00:51]} 32. Rxe6 {[%clk 00:43:41]} {[%emt 00:00:02]} Ne4+ {[%clk 00:11:10]}
{[%emt 00:01:02]} 33. Nxe4 {[%clk 00:43:22]} {[%emt 00:00:49]} dxe4 {[%clk
00:11:38]} {[%emt 00:00:03]} 34. f7+ {[%clk 00:42:16]} {[%emt 00:01:35]} Kg7
{[%clk 00:11:42]} {[%emt 00:00:27]} 35. Rg6+ {[%clk 00:41:05]} {[%emt
00:01:41]} Kh7 {[%clk 00:12:11]} {[%emt 00:00:02]} 36. Rxg5 {[%clk 00:40:52]}
{[%emt 00:00:42]} Ra7 {[%clk 00:11:57]} {[%emt 00:00:44]} 37. h6 {[%clk
00:37:00]} {[%emt 00:04:22]} Raa8 {[%clk 00:09:45]} {[%emt 00:02:43]} 38. Rd1
{[%clk 00:33:18]} {[%emt 00:04:09]} Ra7 {[%clk 00:09:04]} {[%emt 00:01:13]} 39.
Rg7+ {[%clk 00:32:36]} {[%emt 00:01:11]} Kh8 {[%clk 00:07:57]} {[%emt
00:01:39]} 40. g5 {[%clk 00:31:59]} {[%emt 00:01:06]} Ne5 {[%clk 00:06:57]}
{[%emt 00:01:30]} 41. Rd5 {[%clk 00:30:35]} {[%emt 00:01:54]} Re7 {[%clk
00:04:33]} {[%emt 00:02:55]} 42. Rxe5 {[%clk 00:29:36]} {[%emt 00:01:28]} Rxe5
{[%clk 00:05:02]} {[%emt 00:00:01]} 43. g6 {[%clk 00:29:56]} {[%emt 00:00:09]}
Rg5+ {[%clk 00:05:27]} {[%emt 00:00:06]} 44. Kf4 {[%clk 00:30:01]} {[%emt
00:00:25]} Rxg6 {[%clk 00:05:27]} {[%emt 00:00:31]} 45. Rxg6 {[%clk 00:30:22]}
{[%emt 00:00:09]} Rxf7+ {[%clk 00:05:52]} {[%emt 00:00:06]} 46. Kxe4 {[%clk
00:30:45]} {[%emt 00:00:06]} Rc7 {[%clk 00:05:28]} {[%emt 00:00:55]} 47. c3
{[%clk 00:29:40]} {[%emt 00:01:35]} a5 {[%clk 00:05:36]} {[%emt 00:00:22]} 48.
Rb6 {[%clk 00:28:29]} {[%emt 00:01:40]} Rc5 {[%clk 00:05:29]} {[%emt 00:00:37]}
49. Kd4 {[%clk 00:28:03]} {[%emt 00:00:56]} Rh5 {[%clk 00:05:40]} {[%emt
00:00:20]} 50. Kd3 {[%clk 00:26:24]} {[%emt 00:02:09]} Kh7 {[%clk 00:05:57]}
{[%emt 00:00:13]} 51. Rc6 {[%clk 00:26:24]} {[%emt 00:00:29]} Rh2 {[%clk
00:06:07]} {[%emt 00:00:21]} 52. b4 {[%clk 00:25:41]} {[%emt 00:01:12]} Ra2
{[%clk 00:06:27]} {[%emt 00:00:10]} 53. bxa5 {[%clk 00:26:04]} {[%emt
00:00:08]} Rxa3 {[%clk 00:06:49]} {[%emt 00:00:08]} 54. a6 {[%clk 00:26:29]}
{[%emt 00:00:05]} b4 {[%clk 00:07:17]} {[%emt 00:00:01]} 55. a7 {[%clk
00:25:59]} {[%emt 00:01:00]} bxc3 {[%clk 00:07:17]} {[%emt 00:00:31]} 1/2-1/2